[Event "34th GER-ch Seniors-65 2022"]
[Site "Magdeburg"]
[Date "2022.08.17"]
[Round "6.4"]
[White "Matthey, Harald"]
[Black "Syre, Christian"]
[Result "1-0"]
[ECO "B22"]
[WhiteElo "2062"]
[BlackElo "2243"]
[Annotator "NA RC"]
[PlyCount "65"]
[EventDate "2022.08.12"]
[EventType "swiss"]
[EventCountry "GER"]
[SourceTitle "playchess.com"]
[Source "ChessBase"]
[SourceQuality "1"]
[TimeControl "40/5400+30:1800+30"]

{[%evp 12,65,67,9,4,25,26,26,29,27,34,0,0,0,13,-24,0,-35,-39,-53,-45,-49,-23,-12,0,0,0,-19,0,0,63,-45,0,0,16,-29,-46,-18,-18,-40,0,0,3,0,12,0,36,0,0,0,0,0,36,29,820,848]} 1. e4 {[%emt 0:00:04]} c5 {[%emt 0:00:39]} 2. c3 {[%emt 0:01:43]} d5 {[%emt 0:01:17]} 3. exd5 {[%emt 0:00:12]} Qxd5 {[%emt 0:00:02]} 4. Nf3 {[%emt 0:02:51]} g6 {[%emt 0:00:43]} 5. d4 {[%emt 0:00:19]} Bg7 {[%emt 0:00:05]} 6. dxc5 {[%emt 0:00:26]} Qxd1+ {[%emt 0:03:26]} 7. Kxd1 {[%emt 0:01:02]} Nf6 {[%emt 0:03:37]} 8. Bb5+ {[%emt 0:02:15]} Bd7 {[%emt 0:01:32]} 9. a4 {[%emt 0:02:55]} O-O {[%emt 0:01:56]} 10. Re1 {[%emt 0:06:42]} Rd8 {[%emt 0:11:39]} 11. Bxd7 {[%emt 0:03:11]} (11. Nbd2 $1 $14 {feels stronger.}) 11... Nbxd7 {[%emt 0:00:07]} 12. Kc2 {[%emt 0:02:19]} Nd5 {[%emt 0:04:06]} 13. Be3 {[%emt 0:12:23]} (13. c6 {is more appropriate.} bxc6 14. Nbd2) 13... Rac8 {[%emt 0:01:17]} 14. Nbd2 {[%emt 0:17:13]} Nxc5 {[%emt 0:01:15]} 15. Bxc5 {[%emt 0:04:05]} Rxc5 {[%emt 0:00:07]} 16. Ne4 {[%emt 0:01:47]} Rc7 {[%emt 0:09:06]} 17. Rad1 {[%emt 0:02:17]} Nb4+ {[%emt 0:01:35]} 18. Kb1 {[%emt 0:08:17]} Nd5 {[%emt 0:03:31]} 19. Kc2 $1 {[%emt 0:01:56]} h6 {[%emt 0:10:07]} 20. Kb3 {[%emt 0:07:51]} f5 {[%emt 0:01:40]} ({Black should try} 20... Rdd7 $11) 21. Ng3 {[%emt 0:01:39]} ({White should try} 21. c4 $1 $14 fxe4 22. Rxe4) 21... Rd6 {[%emt 0:03:56]} (21... Rcd7 $5 {[%cal Rd5f4]}) 22. Nd4 {[%emt 0:04:32]} Rb6+ {[%emt 0:06:57]} (22... Bxd4 $5 23. Rxd4 Kf7 $11) 23. Kc2 {[%emt 0:04:41]} (23. Nb5 {deserves consideration.}) 23... Nb4+ {[%emt 0:10:11]} 24. Kb1 {[%emt 0:00:13]} Bxd4 {[%emt 0:00:42]} 25. Rxd4 {[%emt 0:02:01]} Nc6 {[%emt 0:00:02]} (25... Rxc3 $5 {[%cal Rb4d3]} 26. Rxe7 (26. Rd8+ $2 Kf7 $19) 26... Nc6 $15) 26. Rd5 {[%emt 0:00:58]} Kf7 {[%emt 0:04:22]} 27. Ne2 {[%emt 0:01:05]} Ra6 {[%emt 0:09:20]} 28. b3 {[%emt 0:00:38]} e6 {[%emt 0:00:52]} (28... Ra5 $11 {feels stronger.} 29. Rxa5 Nxa5) 29. Rc5 {[%emt 0:00:40]} Rd7 {[%emt 0:00:31]} 30. Kc2 {[%emt 0:00:40]} e5 {[%emt 0:01:44]} 31. f3 {[%emt 0:00:53]} Kf6 {[%emt 0:00:28]} (31... Ra5 $11 {should be considered.} 32. Rb5 Kf6) 32. Nc1 {[%emt 0:00:31]} b6 $18 {[%emt 0:01:19]} 33. Rxc6+ {[%emt 0:00:08]} 1-0

[Event "34th GER-ch Seniors-65 2022"]
[Site "Magdeburg"]
[Date "2022.08.17"]
[Round "6.5"]
[White "Buchal, Stephan"]
[Black "Kuhn, Gerd"]
[Result "1-0"]
[ECO "A11"]
[WhiteElo "2230"]
[BlackElo "2049"]
[Annotator "NA RC"]
[PlyCount "71"]
[EventDate "2022.08.12"]
[EventType "swiss"]
[EventCountry "GER"]
[SourceTitle "playchess.com"]
[Source "ChessBase"]
[SourceQuality "1"]
[TimeControl "40/5400+30:1800+30"]

{[%evp 8,71,15,27,33,19,25,19,27,15,22,19,14,0,13,20,18,10,26,23,23,10,35,35,36,20,31,21,23,23,22,28,16,25,33,30,72,56,51,35,124,32767,119,130,139,122,158,204,215,201,200,201,310,212,286,231,282,234,362,378,385,258,465,487,2193,12158]} 1. c4 {[%emt 0:00:07]} c6 {[%emt 0:06:43]} 2. g3 {[%emt 0:00:34]} d5 {[%emt 0:00:25]} 3. Nf3 {[%emt 0:00:15]} Nf6 {[%emt 0:01:20]} 4. Bg2 {[%emt 0:00:12]} g6 {[%emt 0:07:23]} 5. b3 {[%emt 0:01:15]} Bg7 {[%emt 0:00:06]} 6. Bb2 {[%emt 0:00:23]} O-O {[%emt 0:00:10]} 7. O-O {[%emt 0:00:10]} Bg4 {[%emt 0:04:49]} 8. d3 {[%emt 0:04:42]} Nbd7 {[%emt 0:08:36]} 9. Nbd2 {[%emt 0:02:59]} Re8 {[%emt 0:02:49]} 10. cxd5 {[%emt 0:12:59]} cxd5 {[%emt 0:00:10]} 11. Rc1 {[%emt 0:01:57]} Qa5 {[%emt 0:18:40]} 12. a3 {[%emt 0:14:32]} Rac8 {[%emt 0:00:38]} 13. h3 {[%emt 0:12:39]} Bxf3 {[%emt 0:00:10]} 14. Bxf3 {[%emt 0:00:44]} b5 {[%emt 0:07:51]} 15. b4 {[%emt 0:12:25]} Qa6 {[%emt 0:00:29]} 16. Qb3 {[%emt 0:03:01]} e6 {[%emt 0:38:11]} 17. e3 {[%emt 0:02:22]} Nb6 {[%emt 0:00:00]} 18. Bd4 {[%emt 0:04:42]} Nfd7 {[%emt 0:00:00]} 19. Bxg7 {[%emt 0:03:16]} Kxg7 {[%emt 0:00:00]} 20. Qb2+ {[%emt 0:00:15]} f6 {[%emt 0:00:00]} 21. Nb3 {[%emt 0:00:26]} Kf7 {[%emt 0:00:00]} 22. h4 {[%emt 0:01:29]} h5 {[%emt 0:00:00]} 23. Kg2 {[%emt 0:00:40]} (23. Nc5 $16 Na4 24. Nxa6 (24. Qxf6+ Kxf6 25. Nxa6 Ne5 $11) 24... Nxb2 25. Be2) 23... Rxc1 {[%emt 0:00:00]} (23... Ne5 $14 24. Be2 (24. Nc5 Na4 $11) 24... Na4) 24. Rxc1 {[%emt 0:00:04]} Rc8 {[%emt 0:00:00]} 25. Nc5 {[%emt 0:03:34]} Nxc5 {[%emt 0:00:00]} 26. bxc5 {[%emt 0:00:04]} Na4 {[%emt 0:00:00]} 27. Qb4 {[%emt 0:00:59]} Qc6 {[%emt 0:04:25]} 28. Qb1 {[%emt 0:10:13]} a6 {[%emt 0:00:47]} (28... Nxc5 $2 29. d4 Qb6 30. Qc2 $18 (30. Rxc5 Rxc5 31. dxc5 Qxc5 $18)) 29. d4 {[%emt 0:00:30]} Rd8 {[%emt 0:00:42]} (29... Qd7 {was necessary.} 30. Bd1 Qc6) 30. Bd1 {[%emt 0:00:39]} e5 {[%emt 0:00:18]} 31. Bc2 {[%emt 0:03:15]} f5 {[%emt 0:00:20]} 32. Bxa4 {[%emt 0:00:46]} bxa4 {[%emt 0:00:05]} 33. Qb6 {[%emt 0:01:51]} Qxb6 {[%emt 0:01:10]} 34. cxb6 {[%emt 0:00:02]} Rb8 {[%emt 0:00:34]} 35. Rc7+ {[%emt 0:02:07]} Kf8 $18 {[%emt 0:00:37]} (35... Ke6 $142 36. Rc6+ Kd7 37. Rxg6 exd4 38. exd4 Rh8 39. Rg7+ Kc8) 36. b7 {[%emt 0:00:10]} 1-0

[Event "34th GER-ch Seniors-65 2022"]
[Site "Magdeburg"]
[Date "2022.08.17"]
[Round "6.7"]
[White "Cichy, Michael"]
[Black "Knaak, Joachim"]
[Result "1/2-1/2"]
[ECO "E16"]
[WhiteElo "2031"]
[BlackElo "2142"]
[Annotator "TA"]
[PlyCount "30"]
[EventDate "2022.08.12"]
[EventType "swiss"]
[EventCountry "GER"]
[SourceTitle "playchess.com"]
[Source "ChessBase"]
[SourceQuality "1"]
[TimeControl "40/5400+30:1800+30"]

{[%evp 21,30,51,73,42,52,35,31,31,47,44,50]} 1. d4 {[%emt 0:00:07]} Nf6 {[%emt 0:00:03]} 2. Nf3 {[%emt 0:01:38]} e6 {[%emt 0:00:45]} 3. c4 {[%emt 0:00:28]} b6 {[%emt 0:00:03]} 4. g3 {[%emt 0:00:33]} Bb4+ {[%emt 0:00:35]} 5. Bd2 {[%emt 0:00:40]} Bxd2+ {[%emt 0:00:33]} 6. Qxd2 {[%emt 0:01:09]} Bb7 {[%emt 0:00:51]} 7. Bg2 {[%emt 0:01:44]} d6 {[%emt 0:00:33]} 8. Nc3 {[%emt 0:01:11]} Nbd7 {[%emt 0:00:50]} 9. Qc2 {[%emt 0:04:25]} O-O {[%emt 0:06:01]} 10. O-O {[%emt 0:01:34]} Qe7 {[%emt 0:01:09]} 11. e4 {[%emt 0:07:12]} e5 {[%emt 0:04:56]} 12. d5 {[%emt 0:00:58] E16: Queen's Indian: 4 g3 Bb7 5 Bg2 Bb4+.} a5 {[%emt 0:03:23] White is slightly better.} 13. Nd2 {[%emt 0:06:14]} Nc5 {[%emt 0:03:10] [#]} 14. b3 $146 {[%emt 0:02:07]} ({Predecessor:} 14. f4 Nfd7 15. Nb5 c6 16. Nc3 cxd5 17. exd5 Rae8 18. Rae1 f6 19. a3 Na6 20. Qb1 Qd8 21. Nb5 Ndb8 22. Ne4 {1-0 (22) Mladenovic,S (2336)-Tonic,M (1988) Leskovac 2014}) 14... Ng4 {[%emt 0:14:07]} 15. Rae1 {[%emt 0:07:16]} Rae8 {[%emt 0:09:20] Black did not feel at home in the position after the opening.  Weighted Error Value: White=0.11 (very precise) /Black=0.12 (very precise)} 1/2-1/2

[Event "34th GER-ch Seniors-65 2022"]
[Site "Magdeburg"]
[Date "2022.08.17"]
[Round "6.9"]
[White "Neese, Hans-Joachim"]
[Black "Heinemann, Ernst"]
[Result "1/2-1/2"]
[ECO "A38"]
[WhiteElo "2059"]
[BlackElo "2120"]
[Annotator "TA"]
[PlyCount "79"]
[EventDate "2022.08.12"]
[EventType "swiss"]
[EventCountry "GER"]
[SourceTitle "playchess.com"]
[Source "ChessBase"]
[SourceQuality "1"]
[TimeControl "40/5400+30:1800+30"]

{[%evp 18,79,6,-33,18,-20,-21,-43,-39,-40,-38,-42,-39,-52,-43,-37,-22,-21,-18,-18,-18,-19,-25,-45,-52,-54,-27,-49,-28,-33,-32,-37,-32,-75,-83,-83,-81,-83,-14,-21,-8,-8,-8,-7,-4,-17,0,0,0,-2,0,0,0,0,0,-8,-4,-145,-148,-135,-120,-161,-159,-141]} 1. Nf3 {[%emt 0:00:12]} c5 {[%emt 0:00:52]} 2. c4 {[%emt 0:00:39]} Nc6 {[%emt 0:02:33]} 3. Nc3 {[%emt 0:01:56]} Nf6 {[%emt 0:03:41]} 4. g3 {[%emt 0:02:17]} g6 {[%emt 0:01:15]} 5. Bg2 {[%emt 0:02:17]} Bg7 {[%emt 0:00:29]} 6. O-O {[%emt 0:03:02]} O-O {[%emt 0:10:03]} 7. d3 {[%emt 0:07:23]} d5 {[%emt 0:06:03]} 8. cxd5 {[%emt 0:07:55]} Nxd5 {[%emt 0:01:15]} 9. Nxd5 {[%emt 0:03:21]} Qxd5 {[%emt 0:00:05]} 10. Qa4 {[%emt 0:01:33]} Qh5 {[%emt 0:08:54] A38: Symmetrical English vs ...g6: 4 Bg2 Bg7 5 Nf3 Nf6.} (10... Qd6 $15) 11. Rb1 {[%emt 0:05:50]} (11. Qb5 {with more complications.} Bg4 12. Qxb7 Nd4 13. Nxd4 Bxd4 14. Re1) 11... Bd7 {[%emt 0:05:50]} 12. Qh4 {[%emt 0:03:36]} Qxh4 {[%emt 0:01:29] Black is slightly better.} 13. Nxh4 {[%emt 0:00:10] [#]} Rad8 $146 {[%emt 0:02:33]} ({Predecessor:} 13... Rac8 14. Re1 e5 15. Bd2 Be6 16. b3 Rfd8 17. Rbc1 b6 18. Bc3 Bh6 19. Rc2 Nb4 {0-1 (45) Gaulin,G (1973)-Plante,R (2034) Quebec 2019}) 14. Nf3 {[%emt 0:02:14]} b6 {[%emt 0:01:23][%cal Oc5c4]} 15. b3 {[%emt 0:12:51]} Nb4 {[%emt 0:07:48]} 16. a3 {[%emt 0:01:39]} Nd5 {[%emt 0:04:57]} 17. Bb2 {[%emt 0:03:59]} Nc3 {[%emt 0:06:52]} 18. Bxc3 {[%emt 0:03:21]} Bxc3 {[%emt 0:00:05]} 19. Rfc1 {[%emt 0:00:42]} Bf6 {[%emt 0:00:29]} 20. b4 {[%emt 0:01:01]} cxb4 {[%emt 0:00:47]} 21. axb4 {[%emt 0:01:30]} Rc8 {[%emt 0:00:50] Prevents Rc7.} 22. d4 {[%emt 0:09:17]} Rxc1+ {[%emt 0:04:33]} 23. Rxc1 {[%emt 0:00:09]} Rc8 {[%emt 0:00:17]} 24. Rxc8+ {[%emt 0:02:00]} Bxc8 $15 {[%emt 0:00:04][%mdl 4096] Endgame KBB-KBN} 25. e3 {[%emt 0:03:38]} a5 {[%emt 0:02:20]} 26. bxa5 {[%emt 0:00:38]} bxa5 {[%emt 0:00:04]} 27. Nd2 {[%emt 0:09:34]} e6 {[%emt 0:00:48]} ({Better is} 27... a4 $17 {Threatens to win with ...e5.} 28. Nb1 Bd7) 28. Bc6 $11 {[%emt 0:02:23]} Ba6 {[%emt 0:01:49]} 29. Nb3 {[%emt 0:01:21]} Bd8 $1 {[%emt 0:00:48]} 30. f4 {[%emt 0:00:47]} h5 {[%emt 0:03:32]} 31. h4 {[%emt 0:04:23]} Kf8 {[%emt 0:01:47]} 32. Nc5 {[%emt 0:02:21]} Bc4 {[%emt 0:00:46]} 33. Ba4 {[%emt 0:00:25]} Be7 {[%emt 0:04:28]} 34. Kf2 {[%emt 0:00:36]} Kg7 {[%emt 0:00:48]} 35. e4 {[%emt 0:00:22]} f6 {[%emt 0:00:43][%cal Oe6e5]} 36. Ke3 {[%emt 0:01:30]} g5 {[%emt 0:01:07]} 37. f5 {[%emt 0:00:59]} (37. hxg5 $11 fxg5 38. Be8) 37... exf5 $17 {[%emt 0:01:13]} 38. exf5 {[%emt 0:00:01]} Bd5 {[%emt 0:03:37]} 39. Kf2 {[%emt 0:02:08]} g4 {[%emt 0:13:03]} 40. Ke1 {[%emt 0:00:30] Weighted Error Value: White=0.19 (very precise) /Black=0.11 (very precise)} 1/2-1/2

[Event "34th GER-ch Seniors-65 2022"]
[Site "Magdeburg"]
[Date "2022.08.17"]
[Round "6.10"]
[White "Westermann, Johannes"]
[Black "Schulz, Michael"]
[Result "0-1"]
[ECO "A75"]
[WhiteElo "2056"]
[BlackElo "2217"]
[Annotator "TA"]
[PlyCount "76"]
[EventDate "2022.08.12"]
[EventType "swiss"]
[EventCountry "GER"]
[SourceTitle "playchess.com"]
[Source "ChessBase"]
[SourceQuality "1"]
[TimeControl "40/5400+30:1800+30"]

{[%evp 28,76,58,55,56,54,98,103,131,109,109,101,105,83,134,22,122,46,122,73,104,0,0,-280,-273,-273,-258,-815,-664,-817,-764,-1041,-1094,-1025,-570,-569,-569,-6598,-6723,-2247,-1910,-29961,-29962,-6471,-570,-6471,-6471,-6471,-6279,-1977,-570]} 1. d4 {[%emt 0:00:02]} Nf6 {[%emt 0:00:04]} 2. c4 {[%emt 0:00:17]} c5 {[%emt 0:00:05]} 3. d5 {[%emt 0:00:07]} e6 {[%emt 0:00:04]} 4. Nc3 {[%emt 0:00:10]} exd5 {[%emt 0:00:05]} 5. cxd5 {[%emt 0:00:28]} d6 {[%emt 0:00:05]} 6. e4 {[%emt 0:00:36]} a6 {[%emt 0:00:05]} 7. a4 {[%emt 0:00:13]} g6 {[%emt 0:00:04]} 8. Nf3 {[%emt 0:01:34]} Bg7 {[%emt 0:00:05]} 9. Be2 {[%emt 0:03:15]} O-O {[%emt 0:02:31]} 10. Bf4 {[%emt 0:03:09]} Nh5 {[%emt 0:02:27]} 11. Be3 {[%emt 0:05:42]} Bg4 {[%emt 0:04:02]} 12. Nd2 {[%emt 0:06:01]} Bxe2 {[%emt 0:00:23]} 13. Qxe2 {[%emt 0:00:11]} Nd7 {[%emt 0:01:14]} 14. O-O {[%emt 0:00:58]} Re8 {[%emt 0:01:09]} 15. g4 {[%emt 0:15:30]} Nhf6 {[%emt 0:01:49] A75: Modern Benoni: Classical: 9...a6 10 a4 Bg4.} 16. h3 {[%emt 0:06:26] [#]} b5 $146 {[%emt 0:12:42]} ({Predecessor:} 16... h6 17. a5 Nh7 18. Kg2 Ng5 19. f3 f5 20. Bxg5 hxg5 21. Nc4 Ne5 22. Nb6 Rb8 23. Qc2 fxg4 24. fxg4 {½-½ (35) Chernin,A (2604)-Balashov,Y (2578) Germany 1999}) 17. axb5 {[%emt 0:03:53]} axb5 {[%emt 0:00:05] White is better.} 18. Rxa8 {[%emt 0:09:31]} (18. Qxb5 $6 Rb8 19. Qa5 Ne5 $14) 18... Qxa8 {[%emt 0:00:52]} 19. Qxb5 {[%emt 0:00:22] Black must now prevent g5.} ({Don't do} 19. Nxb5 Qa6 $11) 19... Ne5 {[%emt 0:15:46]} 20. Qe2 {[%emt 0:04:45]} Qb8 {[%emt 0:01:06]} (20... Rb8 $142) 21. Nb5 {[%emt 0:14:30]} ({White should try} 21. Rb1 $16) 21... h6 {[%emt 0:01:48]} (21... Ned7 $1 $11) 22. b3 {[%emt 0:00:56]} (22. Ra1 $16) 22... Qb6 {[%emt 0:01:29]} ({Better is} 22... Ned7 $1 $14) 23. Kg2 {[%emt 0:01:54]} (23. b4 $142) 23... g5 {[%emt 0:00:59]} 24. f3 {[%emt 0:02:48]} (24. b4 $16) 24... Ng6 $11 {[%emt 0:00:54][%cal Of6d5] aiming for ...Nxd5!} 25. Na3 $2 {[%emt 0:00:52][%mdl 8192] [#]} (25. Kh1 $11 {and White is okay.}) 25... Nxd5 $1 $19 {[%emt 0:00:44][%mdl 512]} 26. Nac4 {[%emt 0:02:30]} Ndf4+ {[%emt 0:04:10]} 27. Kf2 $2 {[%emt 0:06:46]} (27. Kh1 Nxe2 28. Nxb6) 27... Qb8 {[%emt 0:01:58]} ({Weaker is} 27... Nxe2 28. Nxb6 Nef4 29. Ndc4 $11) 28. Qd1 {[%emt 0:00:31]} d5 {[%emt 0:02:29]} 29. exd5 {[%emt 0:00:12]} Nxd5 {[%emt 0:00:41] ( -> ...Qh2+)} 30. Rh1 {[%emt 0:00:55] Prevents Qh2+.} Ngf4 {[%emt 0:03:12]} 31. Ne4 {[%emt 0:05:41]} Nxe3 {[%emt 0:00:28]} ({But not} 31... Bd4 $2 32. Bxd4 cxd4 33. Qxd4 $19) 32. Kxe3 {[%emt 0:01:36]} Bd4+ {[%emt 0:00:10]} 33. Kd2 {[%emt 0:00:54]} Qb4+ {[%emt 0:00:09]} 34. Kc2 {[%emt 0:00:25] [#]} Rxe4 $1 {[%emt 0:00:20][%mdl 512]} 35. fxe4 {[%emt 0:00:31]} Qc3+ {[%emt 0:00:31] Black is clearly winning.} 36. Kb1 {[%emt 0:00:23]} Qa1+ {[%emt 0:00:12]} 37. Kc2 {[%emt 0:00:37]} Qa2+ {[%emt 0:00:24]} 38. Kc1 {[%emt 0:00:17]} Ne2+ {[%emt 0:00:13] Weighted Error Value: White=1.35/Black=0.31} 0-1

[Event "34th GER-ch Seniors-65 2022"]
[Site "Magdeburg"]
[Date "2022.08.17"]
[Round "6.11"]
[White "Heinig, Wolfram"]
[Black "Falk, Thomas"]
[Result "1/2-1/2"]
[ECO "A37"]
[WhiteElo "2244"]
[BlackElo "2067"]
[Annotator "TA"]
[PlyCount "34"]
[EventDate "2022.08.12"]
[EventType "swiss"]
[EventCountry "GER"]
[SourceTitle "playchess.com"]
[Source "ChessBase"]
[SourceQuality "1"]
[TimeControl "40/5400+30:1800+30"]

{[%evp 19,34,-16,0,0,4,-12,27,27,33,43,85,0,0,7,30,9,16]} 1. c4 {[%emt 0:00:13]} c5 {[%emt 0:00:38]} 2. Nf3 {[%emt 0:00:45]} Nc6 {[%emt 0:00:08]} 3. Nc3 {[%emt 0:01:10]} g6 {[%emt 0:00:34]} 4. g3 {[%emt 0:00:28]} Bg7 {[%emt 0:00:08]} 5. Bg2 {[%emt 0:00:06]} e6 {[%emt 0:00:13]} 6. O-O {[%emt 0:02:32]} Nge7 {[%emt 0:00:07]} 7. a3 {[%emt 0:04:00]} O-O {[%emt 0:01:23]} 8. d3 {[%emt 0:05:02]} d5 {[%emt 0:09:42]} 9. Bd2 {[%emt 0:05:49]} b6 {[%emt 0:16:38]} 10. Rb1 {[%emt 0:02:07]} Bb7 {[%emt 0:00:08]} 11. b4 {[%emt 0:17:22] A37: Symmetrical English vs ...g6: 4 Bg2 Bg7 5 Nf3.} dxc4 {[%emt 0:00:26]} 12. dxc4 {[%emt 0:00:50] [#]} Rb8 $146 {[%emt 0:08:07]} ({Predecessor:} 12... cxb4 13. axb4 a5 14. bxa5 Nxa5 15. Bg5 Bxc3 16. Qxd8 Rfxd8 17. Bxe7 Rd7 18. Bb4 Bxb4 19. Rxb4 Bxf3 20. Bxf3 Rc8 21. Rxb6 Nxc4 {½-½ (33) Bachmann,A (2652)-Popov,I (2618) Benasque 2014}) 13. bxc5 {[%emt 0:07:35] White has an edge.} bxc5 {[%emt 0:01:39]} 14. Na4 {[%emt 0:05:03]} Ba6 {[%emt 0:01:21] [#]} 15. Rxb8 {[%emt 0:01:52]} (15. Rc1 $1 $16) 15... Nxb8 $11 {[%emt 0:00:28]} ({But not} 15... Qxb8 16. Nxc5 Bxc4 17. Nd7 $16) 16. Qc2 {[%emt 0:02:58]} Qc7 {[%emt 0:00:39]} 17. Bc3 {[%emt 0:07:10]} (17. Bf4 $5 {[%cal Rf4c7]} e5 18. Be3 $11) 17... Nd7 {[%emt 0:02:27] Weighted Error Value: White=0.16 (very precise) /Black=0.23 (precise)} 1/2-1/2

[Event "34th GER-ch Seniors-65 2022"]
[Site "Magdeburg"]
[Date "2022.08.18"]
[Round "7.1"]
[White "Boidman, Yuri"]
[Black "Larem, Ewald"]
[Result "1-0"]
[ECO "C11"]
[WhiteElo "2286"]
[BlackElo "2124"]
[Annotator "TA"]
[PlyCount "25"]
[EventDate "2022.08.12"]
[EventType "swiss"]
[EventCountry "GER"]
[SourceTitle "playchess.com"]
[Source "ChessBase"]
[SourceQuality "1"]
[TimeControl "40/5400+30:1800+30"]

{[%evp 15,25,20,35,0,70,51,53,53,329,351,432,440]} 1. e4 {[%emt 0:00:07]} e6 {[%emt 0:00:26]} 2. Nf3 {[%emt 0:00:55]} d5 {[%emt 0:00:22]} 3. Nc3 {[%emt 0:00:08][%cal Bb1c3,Bc3e2,Be2f4][%mdl 32]} Nf6 {[%emt 0:00:33]} 4. e5 {[%emt 0:00:07]} Nfd7 {[%emt 0:00:22]} 5. Ne2 {[%emt 0:00:18]} c5 {[%emt 0:01:19]} 6. c3 {[%emt 0:06:11][%cal Bc2c3,Bc3d4,Bd4e5][%mdl 32]} Nc6 {[%emt 0:00:15]} 7. d4 {[%emt 0:00:08]} cxd4 {[%emt 0:00:25]} 8. cxd4 {[%emt 0:00:07]} f6 {[%emt 0:00:28]} 9. Nf4 {[%emt 0:00:08] C11: French: Classical System: 4 e5 and 4 Bg5 dxe4.} Qe7 {[%emt 0:00:32]} (9... Bb4+ $11 10. Bd2 Qe7) 10. Bd3 $1 $14 {[%emt 0:01:00] And now 0-0 would win. White is more active.} fxe5 {[%emt 0:02:40]} 11. dxe5 {[%emt 0:00:12]} g6 $2 {[%emt 0:01:40][%mdl 8192] [#]} ({Not} 11... g5 12. Ng6 $1 Qg7 13. Nxh8 $16) (11... Ncxe5 $14 12. O-O (12. Nxe5 Nxe5 13. Qh5+ Nf7 $14) 12... g6) 12. Nxg6 $1 $18 {[%emt 0:01:02][%mdl 512] [#]} hxg6 $146 {[%emt 0:00:29]} (12... Qg7 13. Nxh8) ({Predecessor:} 12... Qg7 13. Nxh8 Qxh8 14. O-O Ndxe5 15. Nxe5 Qxe5 16. Re1 Qf6 17. Qh5+ Kd7 18. Qxh7+ Kd8 {1-0 (31) Engel,R (1449)-Wong,K (1312) Verden 2014}) 13. Bxg6+ {[%emt 1:26:37] Black did not feel at home in the position after the opening.  Weighted Error Value: White=0.05 (flawless) /Black=1.03} 1-0